Cogmind - Beta 15 @@@ ROGUE MODE // 2025.10.06 @ 13:50:21 Player: DietSnapple Result: Destroyed by H-55 Commando with Gauss Rifle Performance ------------- Evolutions (2) 1000 Regions Visited (7) 1400 Robots Destroyed (23) 115 Value Destroyed (461) 461 Prototype IDs (1) 20 Alien Tech Used (0) 0 Bonus (314) 314 TOTAL SCORE: 3310 Bonus ------- Follower Combat Kills 14 Aligned with FarCom 300 Cogmind --------- Core Integrity 0/550 Matter 238/300 Energy 59/100 System Corruption 0% Temperature Cool (0) Movement Core (50) Location -8/Materials Parts ------- > --- POWER (1) -------- (None) > --- PROPULSION (4) --- (None) > --- UTILITY (4) ------ (None) > --- WEAPON (2) ------- (None) > --- INVENTORY (5) ---- ECM Suite Peak State ------------ > --- POWER ------------ Light Nuclear Core > --- PROPULSION ------- Flight Unit Flight Unit Flight Unit VTOL Module > --- UTILITY ---------- Advanced Weight Redist. System 0b10 Alert Chip ECM Suite System Shield > --- WEAPON ----------- Light Assault Rifle Light Assault Rifle > --- INVENTORY -------- Light Ion Engine Flight Unit Flight Unit Scrap Suit [Rating: 24] Favorites ----------- Power Ion Engine Engine Ion Engine Power Core Light Nuclear Core Propulsion Wheel Treads Light Treads Wheel Wheel Flight Unit VTOL Module Utility Small Storage Unit Device ECM Suite Storage Small Storage Unit Processor 0b10 Alert Chip Hackware System Shield Protection Improved Light Armor Plating Weapon Assault Rifle Energy Gun Medium Laser Ballistic Gun Assault Rifle Special Melee Weapon Improved Datajack Build | -11 -10 -10 -9 -9 -9 -8 -8 ------- Run | Yrd Mat Min Mat Min Exi Min Mat Slots Evolved 4 | . . . 2 . . . 2 Power . | . . . . . . . . Propulsion 2 | . . . 1 . . . 1 Utility 2 | . . . 1 . . . 1 Weapon . | . . . . . . . . Parts Attached 36 | 6 3 2 14 3 1 . 7 Power 6 | 1 . 1 1 1 . . 2 Engine 5 | 1 . 1 1 1 . . 1 Core 1 | . . . . . . . 1 Reactor . | . . . . . . . . Propulsion 14 | 2 2 . 5 2 . . 3 Treads 1 | . 1 . . . . . . Leg . | . . . . . . . . Wheel 3 | 2 1 . . . . . . Hover . | . . . . . . . . Flight 10 | . . . 5 2 . . 3 Utility 8 | 1 . 1 3 . 1 . 2 Device 4 | . . . 2 . . . 2 Storage 1 | 1 . . . . . . . Processor 1 | . . . . . 1 . . Hackware 1 | . . . 1 . . . . Protection 1 | . . 1 . . . . . Artifact . | . . . . . . . . Weapon 8 | 2 1 . 5 . . . . Energy Gun 3 | 1 1 . 1 . . . . Energy Cannon . | . . . . . . . . Ballistic Gun 4 | 1 . . 3 . . . . Ballistic Cannon . | . . . . . . . . Launcher . | . . . . . . . . Special Weapon . | . . . . . . . . Impact Weapon . | . . . . . . . . Slashing Weapon . | . . . . . . . . Piercing Weapon . | . . . . . . . . Special Melee Weapon 1 | . . . 1 . . . . Unidentified Prototypes 1 | . . . . . 1 . . Parts Lost 18 | . 2 1 7 3 . . 5 Power 2 | . . . 2 . . . . Propulsion 9 | . 1 1 2 2 . . 3 Utility 2 | . . . 1 . . . 1 Weapon 5 | . 1 . 2 1 . . 1 Highest Loss Streak 5 | . 1 1 4 2 . . 5 To Critical Strikes . | . . . . . . . . Average Backups 5 | 1 6 6 5 3 4 4 3 Power . | . 1 1 . . . . . Propulsion 2 | . 3 1 1 2 3 3 1 Utility 1 | . 1 3 2 . 1 1 1 Weapon . | . . . . . . . . Tool/Special . | . . . . . . . . Unused Backups 4 | . 1 1 1 . . . 1 Power 2 | . . 1 . . . . 1 Propulsion 1 | . 1 . . . . . . Utility 1 | . . . 1 . . . . Weapon . | . . . . . . . . Tool/Special . | . . . . . . . . Average Slot Usage (%) 83 | . 83 84 78 82 100 100 71 Engine 10 | . 14 14 9 7 11 11 2 Wheel 12 | . 26 24 3 . . . . Flight 15 | . . . 22 29 33 33 28 Device 6 | . . . 10 11 11 11 14 Storage 7 | . 14 14 3 . . . . Processor 1 | . . . . . 3 11 8 Hackware 4 | . . . 7 11 11 11 2 Protection 2 | . . 2 4 5 7 . . Energy Gun 8 | . 13 14 8 . . . . Ballistic Gun 12 | . 13 14 6 16 22 22 11 Peak Build Rating 24 | 6 6 9 18 16 18 18 24 Average Rating 10 | 4 5 6 13 12 15 18 17 On Entrance 10 | . 6 6 9 14 15 18 18 Naked Turns 11 | . . . . . . . 11 Heaviest Build 18 | 14 14 17 18 10 10 7 12 Greatest Support 25 | 20 20 20 12 12 12 12 25 Greatest Overweight (x) 2 | . 1 1 2 . . . 1 Average Overweight (x) . | . . . . . . . . Largest Inventory Capacity 8 | 8 8 8 8 5 5 5 5 Average Capacity 6 | 6 8 8 5 5 5 5 5 Most Carried 8 | 4 8 8 8 5 5 5 5 Average Carried 5 | 1 6 6 5 3 5 5 4 Final Capacity 8 | 8 8 8 5 5 5 5 5 Final Carried 7 | 3 6 7 4 5 5 5 1 Class Distribution -------------------- 59% | Mutant 24% | Sprinter 16% | Scavenger-Sprinter Dominant Class ---------------- Mutant | -10/Materials Mutant | -10/Mines Sprinter | -9/Materials Scavenger-Sprinter | -9/Mines Scavenger-Sprinter | -9/Exiles Scavenger-Sprinter | -8/Mines Sprinter | -8/Materials Resources | -11 -10 -10 -9 -9 -9 -8 -8 ----------- Run | Yrd Mat Min Mat Min Exi Min Mat Matter Collected 641 | 243 171 . 129 98 . . . Remotely . | . . . . . . . . Salvage Created 579 | . 371 . 170 38 . . . Parts 48 | . 28 . 15 5 . . . Haulers Intercepted . | . . . . . . . . Recyclers Shooed . | . . . . . . . . Parts Field Recycled . | . . . . . . . . Retrieved Matter . | . . . . . . . . Parts Self-Destructed . | . . . . . . . . Prevented . | . . . . . . . . Kills | -11 -10 -10 -9 -9 -9 -8 -8 ------- Run | Yrd Mat Min Mat Min Exi Min Mat Combat Hostiles Destroyed 19 | . 9 . 7 3 . . . Guns 19 | . 9 . 7 3 . . . Classes Destroyed 7 | . 5 . 2 . . . . Builder 1 | . 1 . . . . . . Tunneler 1 | . . . 1 . . . . Operator 1 | . 1 . . . . . . Watcher 1 | . 1 . . . . . . Swarmer 11 | . 3 . 5 3 . . . Grunt 6 | . 6 . . . . . . Sentry 2 | . . . 2 . . . . Best Kill Streak 8 | . 4 . 8 3 . . . Combat Bots Only 7 | . 4 . 7 3 . . . Max Kills in Single Turn 1 | . 1 . 1 1 . . . Gunslinging . | . . . . . . . . Exploded . | . . . . . . . . Melee . | . . . . . . . . Uniques/NPCs Destroyed . | . . . . . . . . Combat | -11 -10 -10 -9 -9 -9 -8 -8 -------- Run | Yrd Mat Min Mat Min Exi Min Mat Hostile Shots Fired 323 | . 65 . 94 37 . . 127 Missed 135 | . 24 . 36 17 . . 58 Hits 188 | . 41 . 58 20 . . 69 Melee 21 | . . . . 2 . . 19 Projectile 167 | . 41 . 58 18 . . 50 Critical Strikes 10 | . . . 2 . . . 8 Damage Taken 2324 | . 475 24 719 229 . . 877 Core 964 | . 65 10 216 117 . . 556 Absorbed by Shields . | . . . . . . . . Core Remaining (%) 62 | 100 . 70 . . . 16 . Volleys Fired 66 | . 38 . 17 4 . . 7 Largest 2 | . 2 . 2 2 . . 1 Hottest 86 | . 70 . 86 40 . . 20 Shots Fired 118 | . 73 . 31 7 . . 7 Gun 118 | . 73 . 31 7 . . 7 Cannon . | . . . . . . . . Launcher . | . . . . . . . . Special . | . . . . . . . . Kinetic 66 | . 38 . 14 7 . . 7 Thermal 38 | . 21 . 17 . . . . Explosive . | . . . . . . . . Electromagnetic 14 | . 14 . . . . . . Robot Hit Streak 12 | . 10 . 12 1 . . 2 Robot Miss Streak 6 | . 2 . 3 1 . . 6 Penetration Max . | . . . . . . . . Secondary Targets 4 | . 3 . 1 . . . . Max Gunslinging Chain 1 | . 1 . 1 . . . . Shots Hit Robots 84 | . 56 . 24 3 . . 1 Core Hits 34 | . 20 . 11 3 . . . Critical Kills . | . . . . . . . . Critical Parts Destroyed 1 | . 1 . . . . . . Critical Strikes 1 | . 1 . . . . . . Destroy 1 | . 1 . . . . . . Melee Attacks . | . . . . . . . . Impact . | . . . . . . . . Slashing . | . . . . . . . . Piercing . | . . . . . . . . Sneak Attacks . | . . . . . . . . Combat Hostiles . | . . . . . . . . Follow-up Attacks . | . . . . . . . . Damage Inflicted 1174 | . 746 . 384 28 . . 16 Guns 1174 | . 746 . 384 28 . . 16 Cannons . | . . . . . . . . Explosions . | . . . . . . . . Melee . | . . . . . . . . Ramming . | . . . . . . . . Kinetic 605 | . 403 . 158 28 . . 16 Thermal 411 | . 185 . 226 . . . . Explosive . | . . . . . . . . Electromagnetic 158 | . 158 . . . . . . Impact . | . . . . . . . . Slashing . | . . . . . . . . Piercing . | . . . . . . . . Highest Corruption . | . . . . . . . . Average Corruption . | . . . . . . . . Corruption Purged . | . . . . . . . . Corruption Blocked . | . . . . . . . . Overload Shots . | . . . . . . . . Overflow Damage . | . . . . . . . . Projectiles . | . . . . . . . . Explosions . | . . . . . . . . Melee . | . . . . . . . . Knockbacks . | . . . . . . . . Impact . | . . . . . . . . Kinetic . | . . . . . . . . Secondary . | . . . . . . . . Self-Inflicted Damage . | . . . . . . . . Shots . | . . . . . . . . Rammed . | . . . . . . . . Targets Rammed . | . . . . . . . . Kicked . | . . . . . . . . Crushed . | . . . . . . . . Highest Temperature 328 | . 230 . 328 7 . . 9 Average Temperature 83 | . 67 . 110 5 . . 4 Received Heat Transfer 576 | . 222 . 282 . . . 72 Siege Activations . | . . . . . . . . Martial Activations . | . . . . . . . . Shielding Activations . | . . . . . . . . Robots Disrupted . | . . . . . . . . Combat Hostiles . | . . . . . . . . Robots Corrupted . | . . . . . . . . Combat Hostiles . | . . . . . . . . Parts Fried . | . . . . . . . . Impact Corruptions . | . . . . . . . . Robots Melted . | . . . . . . . . Combat Hostiles . | . . . . . . . . Parts Melted 1 | . . . 1 . . . . Heat Transferred 1036 | . 555 . 481 . . . . Parts Sabotaged . | . . . . . . . . Parts Stolen . | . . . . . . . . Parts Stripped . | . . . . . . . . Power Chain Reactions . | . . . . . . . . Alert | -11 -10 -10 -9 -9 -9 -8 -8 ------- Run | Yrd Mat Min Mat Min Exi Min Mat Maximum Alert Level 1 | . . . . 1 . . . Low Security (%) 97 | 100 100 100 100 75 . 100 100 Level 1 2 | . . . . 25 . . . Level 2 . | . . . . . . . . Level 3 . | . . . . . . . . Level 4 . | . . . . . . . . Level 5 . | . . . . . . . . High Security . | . . . . . . . . Max Security . | . . . . . . . . Peak Influence 334 | . 137 34 135 334 . . . Initial 40 | . . 34 . 40 . . . Average 40 | . 39 8 29 170 . . . Influence Increases 966 | . 253 . 269 444 . . . Destroy 0b10 Robot/C 420 | . 180 . 140 100 . . . Destroy 0b10 Robot/NC 20 | . 15 . 5 . . . . Destroy Leader 92 | . 42 . 40 10 . . . Allied During Kill 4 | . . . . 4 . . . Successful Hack 38 | . 14 . 24 . . . . Destroy Structure 2 | . 2 . . . . . . Partial Spotted 15 | . . . 15 . . . . Lose Combat Pursuer 375 | . . . 45 330 . . . Influence Decreases 966 | . 164 89 165 214 334 . . Entered New Map 453 | . . 55 . 64 334 . . Time Decay 363 | . 154 34 95 80 . . . Lost Part 110 | . 10 . 70 30 . . . Lost Ally 40 | . . . . 40 . . . Squads Dispatched 7 | . 2 . 3 . . . 2 Investigation 4 | . 2 . 1 . . . 1 Extermination . | . . . . . . . . Reinforcement 3 | . . . 2 . . . 1 Assault . | . . . . . . . . Garrison . | . . . . . . . . Intercept . | . . . . . . . . Searches Triggered . | . . . . . . . . Construction Impeded . | . . . . . . . . Haulers Reinforced . | . . . . . . . . Active Scanning Responses . | . . . . . . . . Cargo Convoy Interrupts . | . . . . . . . . Stealth | -11 -10 -10 -9 -9 -9 -8 -8 --------- Run | Yrd Mat Min Mat Min Exi Min Mat Distress Signals 3 | . . . 3 . . . . Communications Jammed . | . . . . . . . . Distress Signals . | . . . . . . . . Times Spotted 140 | . 20 . 49 49 . . 22 Peak Tracking Total 21 | . 4 . 9 21 . . 17 Tactical Retreats 15 | . . . 8 6 . . 1 Traps | -11 -10 -10 -9 -9 -9 -8 -8 ------- Run | Yrd Mat Min Mat Min Exi Min Mat Traps Triggered 2 | . 2 . . . . . . Indirectly . | . . . . . . . . Trap Hack Attempts . | . . . . . . . . Triggered . | . . . . . . . . Disarmed . | . . . . . . . . Reprogrammed . | . . . . . . . . Reused . | . . . . . . . . Traps Extracted . | . . . . . . . . Installed . | . . . . . . . . Triggered . | . . . . . . . . Machines | -11 -10 -10 -9 -9 -9 -8 -8 ---------- Run | Yrd Mat Min Mat Min Exi Min Mat Machines Disabled . | . . . . . . . . Max in Single Turn . | . . . . . . . . Machines Repaired . | . . . . . . . . Machines Dismantled . | . . . . . . . . Machines Sabotaged . | . . . . . . . . Overloaded Fab Kills . | . . . . . . . . Hacking | -11 -10 -10 -9 -9 -9 -8 -8 --------- Run | Yrd Mat Min Mat Min Exi Min Mat Machines Accessed 9 | . 3 1 4 . . . 1 Terminals 8 | . 3 . 4 . . . 1 Fabricators . | . . . . . . . . Repair Stations . | . . . . . . . . Recycling Units . | . . . . . . . . Scanalyzers . | . . . . . . . . Garrison Access . | . . . . . . . . Total Hacks 32 | . 12 1 17 . . . 2 Successful 19 | . 7 1 11 . . . . Failed 13 | . 5 . 6 . . . 2 Catastrophic 4 | . 2 . 1 . . . 1 Database Lockouts . | . . . . . . . . Manual 26 | . 12 . 10 . 2 . 2 Terminals 31 | . 12 . 17 . . . 2 Fabricators . | . . . . . . . . Repair Stations . | . . . . . . . . Recycling Units . | . . . . . . . . Scanalyzers . | . . . . . . . . Garrison Access . | . . . . . . . . Terminal Hacks 7 | . 1 1 5 . . . . Open Door 1 | . . 1 . . . . . Branch Access Points 2 | . 1 . 1 . . . . Alert Level 1 | . . . 1 . . . . Dispatch Records 1 | . . . 1 . . . . Security Status 1 | . . . 1 . . . . Recall Investigation 1 | . . . 1 . . . . Fabricator Hacks . | . . . . . . . . Repair Station Hacks . | . . . . . . . . Recycling Unit Hacks . | . . . . . . . . Scanalyzer . | . . . . . . . . Garrison Access Hacks . | . . . . . . . . Unauthorized Hacks 12 | . 6 . 6 . . . . Terminals 12 | . 6 . 6 . . . . Track 2 | . 1 . 1 . . . . Botnet 6 | . 2 . 4 . . . . Operators 4 | . 3 . 1 . . . . Fabricators . | . . . . . . . . Repair Stations . | . . . . . . . . Recycling Units . | . . . . . . . . Scanalyzers . | . . . . . . . . Garrison Access . | . . . . . . . . Data Cores Recovered . | . . . . . . . . Used . | . . . . . . . . Hacking Detections 6 | . 3 . 2 . . . 1 Full Trace Events 5 | . 3 . 1 . . . 1 Feedback Events . | . . . . . . . . Feedback Blocked . | . . . . . . . . Robot Schematics Acquired . | . . . . . . . . Robots Built . | . . . . . . . . Authchips . | . . . . . . . . Time . | . . . . . . . . Total Robot Build Rating . | . . . . . . . . Part Schematics Acquired . | . . . . . . . . Parts Built . | . . . . . . . . Authchips . | . . . . . . . . Time . | . . . . . . . . Total Part Build Rating . | . . . . . . . . Parts Repaired . | . . . . . . . . Time . | . . . . . . . . Parts Recycled . | . . . . . . . . Recycled Matter . | . . . . . . . . Retrieved Matter . | . . . . . . . . Retrieved Components . | . . . . . . . . Parts Scanalyzed . | . . . . . . . . Part Schematics Acquired . | . . . . . . . . Parts Damaged . | . . . . . . . . Bothacking | -11 -10 -10 -9 -9 -9 -8 -8 ------------ Run | Yrd Mat Min Mat Min Exi Min Mat Used RIF Installer . | . . . . . . . . Robots Hacked . | . . . . . . . . Non-combat . | . . . . . . . . Combat . | . . . . . . . . Robot Hacks Applied . | . . . . . . . . Relay Couplers Released . | . . . . . . . . Fabnet Peak Effective % . | . . . . . . . . Robots Rewired . | . . . . . . . . Allies Hacked . | . . . . . . . . Hacks Repelled . | . . . . . . . . Allies | -11 -10 -10 -9 -9 -9 -8 -8 -------- Run | Yrd Mat Min Mat Min Exi Min Mat Total Allies 2 | . . . . 2 . . . Largest Group 2 | . . . . 2 . . . Highest-Rated Group 45 | . . . . 45 . . . Highest-Rated Ally 31 | . . . . 31 . . . Total Orders . | . . . . . . . . Ally Attacks 14 | . . . . 14 . . . Total Damage 228 | . . . . 228 . . . Kills 5 | . . . . 5 . . . Allies Corrupted . | . . . . . . . . Allies Melted . | . . . . . . . . Intel | -11 -10 -10 -9 -9 -9 -8 -8 ------- Run | Yrd Mat Min Mat Min Exi Min Mat Active Infowar (turns) 264 | . . . 234 . . . 30 Sensors 157 | . . . 157 . . . . ECM 229 | . . . 199 . . . 30 Robot Analysis Total . | . . . . . . . . Derelict Logs Recovered 3 | . . . . 3 . . . Drone Launches . | . . . . . . . . Drone Recoveries . | . . . . . . . . Exploration | -11 -10 -10 -9 -9 -9 -8 -8 ------------- Run | Yrd Mat Min Mat Min Exi Min Mat Turns Passed 1803 | 89 568 181 488 168 146 47 116 Spaces Moved 3095 | 99 465 209 986 485 448 146 257 Core 28 | 7 . . . . . . 21 Treads 2 | . 2 . . . . . . Legs . | . . . . . . . . Wheels 908 | 92 463 209 144 . . . . Hover . | . . . . . . . . Flight 2157 | . . . 842 485 448 146 236 Fastest Speed 29 | 50 80 80 29 29 32 32 29 Average Speed 46 | 77 80 83 39 30 32 32 32 Slowest Speed 195 | 80 160 95 195 32 32 32 100 Overloaded Moves . | . . . . . . . . Propulsion Burnouts . | . . . . . . . . Robots Hopped 39 | . . . 25 5 . 1 8 Potential Cave-ins . | . . . . . . . . Cave-ins Triggered . | . . . . . . . . Exploration Rate (%) 46 | 5 63 45 67 81 44 45 22 Regions Visited 7 Branch Regions 4 Pre-discovered Areas 2 | . . . . 2 . . . Known Exits Taken 2 | . 1 . 1 . . . . Unknown Exits Taken 5 | 1 . 1 . 1 1 1 . Scrap Searched . | . . . . . . . . Spaces Dug . | . . . . . . . . Terrain Destroyed . | . . . . . . . . Melee . | . . . . . . . . Projectile . | . . . . . . . . AOE . | . . . . . . . . Terrain Rammed . | . . . . . . . . Walls Destroyed . | . . . . . . . . Machines Disabled . | . . . . . . . . Actions | -11 -10 -10 -9 -9 -9 -8 -8 --------- Run | Yrd Mat Min Mat Min Exi Min Mat Total 3299 | 108 584 215 1030 491 449 144 278 Wait 100 | . 68 . 22 . . . 10 Move 3015 | 98 464 208 938 474 447 143 243 Hop 34 | . . . 22 5 . 1 6 Pick Up 26 | 4 7 3 7 3 . . 2 Fast Attach 16 | 5 2 1 4 2 1 . 1 Attach 20 | 1 2 . 9 3 . . 5 Detach 5 | . . . 4 . . . 1 Swap 4 | . 1 1 1 . . . 1 Drop 13 | . 2 2 6 . 1 . 2 Fire 66 | . 38 . 17 4 . . 7 Melee . | . . . . . . . . Ram . | . . . . . . . . Kick . | . . . . . . . . Crush . | . . . . . . . . Escape Stasis . | . . . . . . . . Rewire . | . . . . . . . . Trap . | . . . . . . . . Miscellaneous . | . . . . . . . . Route ------- -11/Scrapyard -10/Materials (discovered 2 exits: *Min / [*Sub]) -10/Mines -9/Materials (discovered 4 exits: *Mat / *Min x2 / *Sto) -9/Mines (discovered 2 exits: *Mat / *Exi) -9/Exiles -8/Mines -8/Materials History --------- Turn | Location | Event 11 | -11/Scrapyard | Discovered new exit (range 16) 90 | -11/Scrapyard | Entered Materials 300 | -10/Materials | Build established: Mutant 329 | -10/Materials | Discovered new exit (range 10) 344 | -10/Materials | Identified exit to Mines 585 | -10/Materials | Discovered new exit (range 11) 658 | -10/Materials | Entered Mines 773 | -10/Mines | Discovered new exit (range 12) 788 | -10/Mines | Met a Derelict who couldn't figure out how to use a Trap Extractor 839 | -10/Mines | Entered Materials 839 | -9/Materials | Evolved 2 slots: Propulsion x1, Utility x1 1089 | -9/Materials | Discovered new exit (range 7) 1151 | -9/Materials | Discovered new exit (range 6) 1218 | -9/Materials | Destroyed 7 combat bots 1236 | -9/Materials | Lost 4 parts (2n2w) 1298 | -9/Materials | Discovered new exit (range 15) 1306 | -9/Materials | Identified exit to Mines 1306 | -9/Materials | Identified exit to Storage 1326 | -9/Materials | Core integrity fell below 50% 1327 | -9/Materials | Entered Mines 1334 | -9/Mines | Discovered new exit (range 7) 1345 | -9/Mines | Assembled infested the area 1429 | -9/Mines | Core integrity fell below 20% 1438 | -9/Mines | Learned location of Storage (-9) 1447 | -9/Mines | Found a Scrap Suit stashed away for nefarious purposes 1448 | -9/Mines | Found Scrap Suit 1467 | -9/Mines | Learned location of Zion (-6) 1493 | -9/Mines | Discovered new exit (range 5) 1495 | -9/Mines | Entered Exiles 1513 | -9/Exiles | Met EX-HEX 1526 | -9/Exiles | Met EX-BIN 1533 | -9/Exiles | Aligned with FarCom system 1534 | -9/Exiles | Given EX-Vault access code 1592 | -9/Exiles | Opened EX-Vault 1596 | -9/Exiles | Found Prototype Processor 1596 | -9/Exiles | Identified 0b10 Alert Chip 1604 | -9/Exiles | Warned to stay clear of 0b10 Research branches 1633 | -9/Exiles | Discovered new exit (range 15) 1641 | -9/Exiles | Left Exiles lab with 0b10 Alert Chip 1641 | -9/Exiles | Entered Mines 1686 | -8/Mines | Discovered new exit (range 5) 1688 | -8/Mines | Entered Materials 1688 | -8/Materials | Evolved 2 slots: Propulsion x1, Utility x1 1791 | -8/Materials | Core integrity fell below 50% 1793 | -8/Materials | Released all parts (3) 1801 | -8/Materials | Core integrity fell below 20% 1804 | -8/Materials | Destroyed by H-55 Commando with Gauss Rifle Last Messages --------------- 01754_ K-01 Serf collects debris. 01759_ Lgt. Nuclear Core severed. 01767_ Deuterium Engine severed. 01769_ Flight Unit destroyed. 01773_ Slug penetrates Wall. 01778_ Flight Unit severed. 01779_ Slug penetrates Wall. 01780_ Lgt. Assault Rifle severed. 01781_ VTOL Module destroyed. 01781_ Flight Unit destroyed. 01788_ Slug penetrates Wall. 01789_ Flight Unit severed. 01791_ Slug penetrates Wall. 01792_ Flight Unit severed. 01793_ Released 0b10 Alert Chip. 01793_ Released Adv. Weight Redist. System. 01793_ Released Scrap Suit. 01794_ Penetrated by Slug. 01796_ Atomic Centrifuge disabled. 01797_ Slug penetrates Atomic Centrifuge. Map ----- +----------------------------------------------------+ | ?????????????????????????????????????????? | | ?????????????????????????????????????????? | | ?????????????????????????????????????????? | | ?????????????????????????????????#####???? | | ?????????????????????????????????# #???? | | ????????????????????????########## #???? | | ????????????????????????# # #???? | | ????????????????????????# # #???? | | ????????????????????????# =# #???? | | ???????????????????????# [+ #???? | | ???????????????????????# # #???? | | ???????????????????????# = #* #???? | | ???????????????????????# # #???? | | ???????????????????????# # #???? | | ???????????????????????# != # #???? | | ##????????????????????##+##+##### #???? | | ??????????????####### ## #???? | | ??????????????# ## ## ##??? | | ??????????????# ## // # #??? | | ??????????????# ## / # #??? | | ?????????###### [ ## Y + " #??? | | #?????????# + ## c""h # #??? | | "?????????# # ## cs # #??? | | ########### # ## c " #######??? | | + ##Ygs s #????????? | | ########### #### ###@#####+#????????? | | # %* # #??###/##?#g#?### ###?Y????? | | # * """ # #???# ### #?# #??????? | | + * "Y" # #???# ### T" #??????? | | # " " # ##### g " +??????? | | # """ # ##! #??????? | | ## """ # ## #??????? | | ?# """ # """ """ #### ###??????? | | ?# / """ """ #?##+########?? | | ?###### ###### """ """ #?# # | | ??????###????# g #?# """ """ ? | | ?????????????# ### """ """ ?? | | ?????????????# # """ """ # | | ????????????## # !# | | ?????????????# **[% # """ # | | ?????????????# [ / """ ?? | | ?????????????# **[ # """ """ ?? | | ?????????????# ##### # """ ?? | | ?????????????# #???# # "S """ # | | ????????????# = ???######### """ """ # | | ????????????# ???????????# "" """ ?? | | ??????????? ???????????# ? ???? | | ??????????### ???????????#####??#????? | | ????????????# ???????????????????????? | | ????????????### ?????????????????????????? | +----------------------------------------------------+ Best States ------------- Heat Dissipation 31 Energy Generation 14 Energy Capacity 265 Matter Stores 300 Matter Capacity 300 Sight Range 16 Robot Scan Range 14 Terrain Scan Density 10 ECM Strength 1 Additional Mass Support 9 Armor Coverage 150 Evasion (%) 64 Recoil Reduction 1 Defensive Hacking 10 Item Schematics ----------------- None Robot Schematics ------------------ None Fabricated ------------ Nothing Repaired ---------- Nothing Alien Tech Used ----------------- None Achievements -------------- None Challenges ------------ None Game ------ Seed ArcDecoyPower Manual? 0 Play Time 00:33:58 Cumulative 13.3 hours Start 2025.10.06 @ 13:15:56 End 2025.10.06 @ 13:50:21 Sessions 1 Manual Loads 0 Difficulty Rogue Special Mode None Game No. 40 Rogue 33 Adventurer 7 Explorer 0 Win Type - Total 0 Types 0/0/0/0/0/0/0/0/0/0 Lore% 3 Gallery% 16 Achievement% 16 Wizard Run 0 Options --------- Layout 1 ASCII 0 Keyboard 1 Movement Vi Keybinds 0 Fullscreen 1 Font 24/Smallcaps Map View 76x35 Zoom Use 0% Tactical HUD 1 Map Filters NONE Filters NONE Steam 1 RUN: 8a9f1c9e-42a8-4fc5-9b4f-65175678249f